Cogmind - Beta 15 @@@ ROGUE MODE // 2025.05.17 @ 19:14:47 Player: Windjigo Result: Destroyed by G-34 Mercenary with Small Laser Performance ------------- Evolutions (0) 0 Regions Visited (2) 400 Robots Destroyed (30) 150 Value Destroyed (653) 653 Prototype IDs (0) 0 Alien Tech Used (0) 0 Bonus (0) 0 TOTAL SCORE: 1203 Bonus ------- None Cogmind --------- Core Integrity 0/250 Matter 285/300 Energy 250/250 System Corruption 0% Temperature Warning (312) Movement Rolling (155) Ox5 Location -10/Mines Parts ------- > --- POWER (1) -------- Ion Engine > --- PROPULSION (2) --- Wheel > --- UTILITY (2) ------ High-capacity Storage Unit Signal Interpreter > --- WEAPON (2) ------- Particle Gun Particle Gun > --- INVENTORY (20) --- Ion Engine Light Nuclear Core Wheel Wheel Compact Wheel Compact Wheel Improved Heat Sink Medium Storage Unit Medium Matter Pod (100) Power Shielding Small Laser Particle Gun Light Assault Rifle Light Assault Rifle Datajack Mining Laser Mining Laser Welding Torch Peak State ------------ > --- POWER ------------ Ion Engine > --- PROPULSION ------- Wheel Wheel > --- UTILITY ---------- High-capacity Storage Unit Signal Interpreter > --- WEAPON ----------- Particle Gun Particle Gun > --- INVENTORY -------- Ion Engine Light Nuclear Core Wheel Compact Wheel Compact Wheel Compact Wheel Improved Heat Sink Medium Storage Unit Medium Matter Pod Power Shielding Small Laser Particle Gun Light Assault Rifle Light Assault Rifle Datajack Mining Laser Mining Laser Welding Torch [Rating: 11] Favorites ----------- Power Ion Engine Engine Ion Engine Propulsion Compact Wheel Leg Aluminum Leg Wheel Compact Wheel Utility High-capacity Storage Unit Device Seismic Detector Storage High-capacity Storage Unit Processor Signal Interpreter Weapon Assault Rifle Energy Gun Small Laser Ballistic Gun Assault Rifle Special Weapon Mining Laser Build | -11 -10 -10 ------- Run | Yrd Mat Min Slots Evolved . | . . . Power . | . . . Propulsion . | . . . Utility . | . . . Weapon . | . . . Parts Attached 26 | 8 12 6 Power 3 | 1 2 . Engine 3 | 1 2 . Core . | . . . Reactor . | . . . Propulsion 8 | 3 3 2 Treads . | . . . Leg 1 | 1 . . Wheel 7 | 2 3 2 Hover . | . . . Flight . | . . . Utility 5 | 2 3 . Device 1 | 1 . . Storage 2 | 1 1 . Processor 2 | . 2 . Hackware . | . . . Protection . | . . . Artifact . | . . . Weapon 10 | 2 4 4 Energy Gun 6 | 1 2 3 Energy Cannon . | . . . Ballistic Gun 3 | 1 2 . Ballistic Cannon . | . . . Launcher . | . . . Special Weapon 1 | . . 1 Impact Weapon . | . . . Slashing Weapon . | . . . Piercing Weapon . | . . . Special Melee Weapon . | . . . Unidentified Prototypes . | . . . Parts Lost 4 | . 3 1 Power . | . . . Propulsion 2 | . 1 1 Utility . | . . . Weapon 2 | . 2 . Highest Loss Streak 2 | . 2 1 To Critical Strikes . | . . . Average Backups 10 | 4 9 17 Power 1 | . 1 1 Propulsion 2 | 2 2 4 Utility 2 | . 1 4 Weapon 2 | . 2 5 Tool/Special . | . . . Unused Backups 15 | . 4 11 Power 2 | . 1 1 Propulsion 2 | . 1 1 Utility 5 | . 1 4 Weapon 4 | . 1 3 Tool/Special 2 | . . 2 Average Slot Usage (%) 97 | . 97 99 Engine 14 | . 14 14 Wheel 27 | . 28 27 Device 4 | . 5 . Storage 14 | . 14 14 Processor 9 | . 8 14 Energy Gun 13 | . 10 25 Ballistic Gun 11 | . 15 . Peak Build Rating 11 | 7 9 11 Average Rating 7 | 4 7 10 On Entrance 5 | . 7 9 Naked Turns . | . . . Heaviest Build 51 | 13 50 51 Greatest Support 32 | 32 32 32 Greatest Overweight (x) 2 | . 1 2 Average Overweight (x) . | . . 1 Largest Inventory Capacity 20 | 8 20 20 Average Capacity 17 | 6 18 20 Most Carried 18 | 6 16 18 Average Carried 10 | 4 9 17 Final Capacity 20 | 8 20 20 Final Carried 18 | 6 16 18 Class Distribution -------------------- 60% | Mutant 39% | Scavenger-Mutant Dominant Class ---------------- Mutant | -10/Materials Scavenger-Mutant | -10/Mines Resources | -11 -10 -10 ----------- Run | Yrd Mat Min Matter Collected 741 | 281 400 60 Remotely . | . . . Salvage Created 1011 | 65 725 221 Parts 60 | 5 43 12 Haulers Intercepted 1 | . 1 . Recyclers Shooed 1 | 1 . . Parts Field Recycled . | . . . Retrieved Matter . | . . . Parts Self-Destructed . | . . . Prevented . | . . . Kills | -11 -10 -10 ------- Run | Yrd Mat Min Combat Hostiles Destroyed 19 | . 14 5 Guns 19 | . 14 5 Classes Destroyed 7 | 2 5 . Worker 3 | . 3 . Tunneler 2 | 1 . 1 Hauler 1 | . 1 . Recycler 2 | 1 1 . Watcher 3 | . 3 . Swarmer 6 | . 6 . Grunt 13 | . 8 5 Best Kill Streak 3 | 2 3 2 Combat Bots Only 3 | . 3 2 Max Kills in Single Turn 1 | 1 1 1 Gunslinging . | . . . Exploded . | . . . Melee . | . . . Uniques/NPCs Destroyed . | . . . Combat | -11 -10 -10 -------- Run | Yrd Mat Min Hostile Shots Fired 99 | . 76 23 Missed 21 | . 19 2 Hits 78 | . 57 21 Projectile 78 | . 57 21 Critical Strikes 5 | . 5 . Damage Taken 931 | . 677 254 Core 254 | . 167 87 Absorbed by Shields . | . . . Core Remaining (%) 100 | 100 . . Volleys Fired 102 | 6 72 24 Largest 2 | 2 2 2 Hottest 130 | 60 105 130 Shots Fired 182 | 12 128 42 Gun 179 | 12 128 39 Cannon . | . . . Launcher . | . . . Special 3 | . . 3 Kinetic 96 | 6 90 . Thermal 86 | 6 38 42 Explosive . | . . . Electromagnetic . | . . . Robot Hit Streak 23 | 3 9 23 Robot Miss Streak 5 | 2 5 3 Penetration Max . | . . . Secondary Targets 3 | . 2 1 Max Gunslinging Chain 1 | . 1 1 Shots Hit Robots 122 | 8 84 30 Core Hits 53 | 4 36 13 Critical Kills . | . . . Critical Parts Destroyed . | . . . Critical Strikes . | . . . Melee Attacks . | . . . Impact . | . . . Slashing . | . . . Piercing . | . . . Sneak Attacks . | . . . Combat Hostiles . | . . . Follow-up Attacks . | . . . Damage Inflicted 1538 | 80 1056 402 Guns 1538 | 80 1056 402 Cannons . | . . . Explosions . | . . . Melee . | . . . Ramming . | . . . Kinetic 770 | 34 736 . Thermal 768 | 46 320 402 Explosive . | . . . Electromagnetic . | . . . Impact . | . . . Slashing . | . . . Piercing . | . . . Highest Corruption . | . . . Average Corruption . | . . . Corruption Purged . | . . . Corruption Blocked . | . . . Overload Shots . | . . . Overflow Damage . | . . . Projectiles . | . . . Explosions . | . . . Melee . | . . . Knockbacks . | . . . Impact . | . . . Kinetic . | . . . Secondary . | . . . Self-Inflicted Damage . | . . . Shots . | . . . Rammed . | . . . Targets Rammed . | . . . Kicked . | . . . Crushed . | . . . Highest Temperature 423 | 40 160 423 Average Temperature 98 | 18 48 141 Received Heat Transfer 501 | . 357 144 Effects 3 | . . 3 Interference 2 | . . 2 Damage (minor) 1 | . . 1 Siege Activations . | . . . Martial Activations . | . . . Shielding Activations . | . . . Robots Disrupted . | . . . Combat Hostiles . | . . . Robots Corrupted . | . . . Combat Hostiles . | . . . Parts Fried . | . . . Impact Corruptions . | . . . Robots Melted . | . . . Combat Hostiles . | . . . Parts Melted 6 | . 3 3 Heat Transferred 1803 | 100 737 966 Parts Sabotaged . | . . . Parts Stolen . | . . . Parts Stripped . | . . . Power Chain Reactions . | . . . Alert | -11 -10 -10 ------- Run | Yrd Mat Min Maximum Alert Level . | . . . Low Security (%) 100 | 100 100 100 Level 1 . | . . . Level 2 . | . . . Level 3 . | . . . Level 4 . | . . . Level 5 . | . . . High Security . | . . . Max Security . | . . . Peak Influence 91 | 5 91 74 Initial 9 | . . 9 Average 33 | 1 35 34 Influence Increases 654 | 10 489 155 Destroy 0b10 Robot/C 380 | . 280 100 Destroy 0b10 Robot/NC 55 | 10 40 5 Destroy Leader 88 | . 68 20 Successful Hack 8 | . 8 . Disable Machine 30 | . . 30 Destroy Structure 3 | . 3 . Lose Combat Pursuer 90 | . 90 . Influence Decreases 634 | 10 465 159 Entered New Map 15 | . . 15 Time Decay 589 | 10 435 144 Lost Part 30 | . 30 . Squads Dispatched 2 | . 2 . Investigation 1 | . 1 . Extermination . | . . . Reinforcement 1 | . 1 . Assault . | . . . Garrison . | . . . Intercept . | . . . Searches Triggered . | . . . Construction Impeded . | . . . Haulers Reinforced . | . . . Active Scanning Responses . | . . . Cargo Convoy Interrupts . | . . . Stealth | -11 -10 -10 --------- Run | Yrd Mat Min Distress Signals 1 | . 1 . Communications Jammed . | . . . Distress Signals . | . . . Times Spotted 27 | . 21 6 Peak Tracking Total 5 | . 5 2 Tactical Retreats 3 | . 3 . Traps | -11 -10 -10 ------- Run | Yrd Mat Min Traps Triggered . | . . . Indirectly . | . . . Trap Hack Attempts . | . . . Triggered . | . . . Disarmed 4 | . 4 . Reprogrammed 1 | . 1 . Reused . | . . . Traps Extracted . | . . . Installed . | . . . Triggered . | . . . Machines | -11 -10 -10 ---------- Run | Yrd Mat Min Machines Disabled 2 | . . 2 Max in Single Turn 1 | . . 1 Machines Repaired . | . . . Machines Dismantled . | . . . Machines Sabotaged . | . . . Overloaded Fab Kills . | . . . Hacking | -11 -10 -10 --------- Run | Yrd Mat Min Machines Accessed 5 | . 5 . Terminals 3 | . 3 . Fabricators . | . . . Repair Stations . | . . . Recycling Units 2 | . 2 . Scanalyzers . | . . . Garrison Access . | . . . Total Hacks 15 | . 15 . Successful 10 | . 10 . Failed 5 | . 5 . Catastrophic . | . . . Database Lockouts . | . . . Manual . | . . . Terminals 11 | . 11 . Fabricators . | . . . Repair Stations . | . . . Recycling Units 4 | . 4 . Scanalyzers . | . . . Garrison Access . | . . . Terminal Hacks 7 | . 7 . Alert Level 2 | . 2 . Locate Traps 2 | . 2 . Disarm Traps 1 | . 1 . Reprogram Traps 1 | . 1 . Hauler Manifests 1 | . 1 . Fabricator Hacks . | . . . Repair Station Hacks . | . . . Recycling Unit Hacks 3 | . 3 . Report Inventory 2 | . 2 . Retrieve Components 1 | . 1 . Scanalyzer . | . . . Garrison Access Hacks . | . . . Unauthorized Hacks . | . . . Terminals . | . . . Fabricators . | . . . Repair Stations . | . . . Recycling Units . | . . . Scanalyzers . | . . . Garrison Access . | . . . Data Cores Recovered . | . . . Used . | . . . Hacking Detections 4 | . 4 . Full Trace Events 1 | . 1 . Feedback Events . | . . . Feedback Blocked . | . . . Robot Schematics Acquired . | . . . Robots Built . | . . . Authchips . | . . . Time . | . . . Total Robot Build Rating . | . . . Part Schematics Acquired . | . . . Parts Built . | . . . Authchips . | . . . Time . | . . . Total Part Build Rating . | . . . Parts Repaired . | . . . Time . | . . . Parts Recycled . | . . . Recycled Matter . | . . . Retrieved Matter . | . . . Retrieved Components 4 | . 4 . Parts Scanalyzed . | . . . Part Schematics Acquired . | . . . Parts Damaged . | . . . Bothacking | -11 -10 -10 ------------ Run | Yrd Mat Min Used RIF Installer . | . . . Robots Hacked . | . . . Non-combat . | . . . Combat . | . . . Robot Hacks Applied . | . . . Relay Couplers Released . | . . . Fabnet Peak Effective % . | . . . Robots Rewired . | . . . Allies Hacked . | . . . Hacks Repelled . | . . . Allies | -11 -10 -10 -------- Run | Yrd Mat Min Total Allies . | . . . Largest Group . | . . . Highest-Rated Group . | . . . Highest-Rated Ally . | . . . Total Orders . | . . . Ally Attacks . | . . . Total Damage . | . . . Kills . | . . . Allies Corrupted . | . . . Allies Melted . | . . . Intel | -11 -10 -10 ------- Run | Yrd Mat Min Active Infowar (turns) 520 | 51 469 . Seismic 520 | 51 469 . Robot Analysis Total . | . . . Derelict Logs Recovered 1 | . . 1 Drone Launches . | . . . Drone Recoveries . | . . . Exploration | -11 -10 -10 ------------- Run | Yrd Mat Min Turns Passed 1574 | 87 1161 326 Spaces Moved 1029 | 56 769 204 Core 10 | 10 . . Treads . | . . . Legs . | . . . Wheels 1019 | 46 769 204 Hover . | . . . Flight . | . . . Fastest Speed 50 | 50 90 105 Average Speed 107 | 91 108 107 Slowest Speed 115 | 100 115 115 Overloaded Moves . | . . . Propulsion Burnouts . | . . . Robots Hopped . | . . . Potential Cave-ins . | . . . Cave-ins Triggered . | . . . Exploration Rate (%) 36 | 4 77 27 Regions Visited 2 Branch Regions 1 Pre-discovered Areas . | . . . Known Exits Taken 1 | . 1 . Unknown Exits Taken 1 | 1 . . Scrap Searched . | . . . Spaces Dug . | . . . Terrain Destroyed . | . . . Melee . | . . . Projectile . | . . . AOE . | . . . Terrain Rammed . | . . . Walls Destroyed . | . . . Machines Disabled . | . . . Actions | -11 -10 -10 --------- Run | Yrd Mat Min Total 1305 | 79 967 259 Wait 99 | . 82 17 Move 1027 | 55 768 204 Hop . | . . . Pick Up 35 | 9 22 4 Fast Attach 5 | 5 . . Attach 6 | 3 3 . Detach . | . . . Swap 19 | . 11 8 Drop 12 | 1 9 2 Fire 102 | 6 72 24 Melee . | . . . Ram . | . . . Kick . | . . . Crush . | . . . Escape Stasis . | . . . Rewire . | . . . Trap . | . . . Miscellaneous . | . . . Route ------- -11/Scrapyard -10/Materials (discovered 4 exits: *Mat / *Min x2 / *Sub) -10/Mines (discovered 1 exit: *Mat) History --------- Turn | Location | Event 12 | -11/Scrapyard | Discovered new exit (range 16) 88 | -11/Scrapyard | Entered Materials 211 | -10/Materials | Discovered new exit (range 7) 318 | -10/Materials | Build established: Mutant 405 | -10/Materials | Discovered new exit (range 12) 757 | -10/Materials | Identified exit to Materials 910 | -10/Materials | Discovered new exit (range 16) 951 | -10/Materials | Core integrity fell below 50% 1074 | -10/Materials | Discovered new exit (range 11) 1084 | -10/Materials | Identified exit to Subcaves 1119 | -10/Materials | Identified exit to Mines 1249 | -10/Materials | Entered Mines 1255 | -10/Mines | Build established: Scavenger-Mutant 1336 | -10/Mines | Discovered exit to Materials (range 10) 1353 | -10/Mines | Core integrity fell below 20% 1519 | -10/Mines | Excavation squad dispatched 1519 | -10/Mines | A large section of the Mines collapsed 1575 | -10/Mines | Destroyed by G-34 Mercenary with Small Laser Last Messages --------------- 01382_ Particle Gun temporarily disabled. 01387_ K-01 Serf cleans the Seismic Survey Station. 01392_ Seismic Survey Station disabled. 01420_ Acquired 40 matter. 01428_ K-01 Serf collects debris. 01468_ K-01 Serf cleans the Core Extractor. 01485_ K-01 Serf collects debris. 01519_ R-06 Scavenger crushed by falling debris. 01519_ R-06 Scavenger system corrupted by crushing effect. 01519_ ALERT: Suspicious cave-in, suspected derelict activity in mines. Dispatching escorted excavation squad. 01519_ R-06 Scavenger system terminally corrupted. 01544_ K-01 Serf cleans the Pressure Siphon. 01569_ Com. Wheel destroyed. 01572_ G-34 Mercenary destroyed. Map ----- +----------------------------------------------------+ | | | | | | | | | | | | | | | | | | | | | | | | | ????????????????????????????????? | | ????????????????????????????????? | | ????????????????????????????????? | | ????????????????????????????????? | | ????????????????????????????????? | | ?????????????????######?????????? | | ????????????????## ##?####???? | | ??????########### #?# ???? | | ??????# """ #?# #???? | | ??????# """ #??#*#???? | | ??????# ######### """ #??#%#???? | | ??????# #???????# """ ####!##??? | | ??????# #???????# t k *g#??? | | ??????# #???????# @[%=#??? | | ??????# #???????# ####### #??? | | ###### #???????# ###?????# #??? | | #"## #???????# ######### #??? | | # ######### ## #??? | | ######## [%! ##### ## #??? | | ????????# %= #???# ## #??? | | ??????????# """ #???# ## #??? | | ??????????# """ #???# ## #??? | | ??????????# """ ##### ## #??? | | ??????????# ## #??? | | ??????????# ######## #??? | | ??????????###########??????# #??? | | ????????????????############ ##?? | | ????????????????# ! =%* #?? | | ????????????????# =%= #?? | | ????????????????# """ """ """ #?? | | ????????????????# """ """ "" #?? | | ????????????????# """ "" """ #?? | | ????????????????# #?? | | ????????????????# """ """ """ #?? | | ????????????????# """ """ """ #?? | | ????????????????# """ """ """ #?? | | ????????????????# #?? | | ????????????????# """ < #?? | +----------------------------------------------------+ Best States ------------- Heat Dissipation 25 Energy Generation 10 Energy Capacity 250 Matter Stores 300 Matter Capacity 300 Sight Range 16 Terrain Scan Density 10 Evasion (%) 50 Targeting Accuracy 5 Item Schematics ----------------- None Robot Schematics ------------------ None Fabricated ------------ Nothing Repaired ---------- Nothing Alien Tech Used ----------------- None Achievements -------------- None Challenges ------------ None Game ------ Seed RefineryLargeFlail Manual? 0 Play Time 00:16:00 Cumulative 26.6 hours Start 2025.05.17 @ 18:58:08 End 2025.05.17 @ 19:14:47 Sessions 1 Manual Loads 0 Difficulty Rogue Special Mode None Game No. 21 Rogue 21 Adventurer 0 Explorer 0 Win Type - Total 0 Types 0/0/0/0/0/0/0/0/0/0 Lore% 28 Gallery% 23 Achievement% 20 Wizard Run 0 Options --------- Layout 1 ASCII 0 Keyboard 0 Movement Mouse Keybinds 0 Fullscreen 1 Font 24/Smallcaps Map View 50x35 Zoom Use 0% Tactical HUD 1 Map Filters NONE Filters NONE Steam 1 RUN: aa6874e7-b5fd-4dd5-9660-bcc91f651678